bitfinex/quotes_SOLUSD_20251116
["timestamp","ask_amount","ask_price","bid_price","bid_amount"]
[1763334446541,100.0,136.51,136.5,9.78882769]
[1763334446873,2.0,136.71,136.53,9.78882769]
[1763334447052,100.0,136.71,136.7,9.31702511]
[1763334447852,100.0,136.71,136.61,0.68]
[1763334447853,100.0,136.62,136.61,9.78882769]
[1763334448022,0.2,136.73,136.61,9.78882769]
[1763334448225,100.0,136.58,136.56,15.84490505]
[1763334448450,2.0,136.72,136.56,9.78882769]
[1763334448629,0.2,136.73,136.56,15.84490505]
[1763334448630,100.0,136.57,136.56,15.84490505]
[1763334448952,100.0,136.57,136.56,19.1058528]
[1763334449319,100.0,136.57,136.5,12.20753127]
[1763334449320,100.0,136.51,136.5,6.05607736]
[1763334449546,100.0,136.52,136.51,9.78882769]
[1763334449753,100.0,136.52,136.51,19.1058528]
[1763334449954,50.0,136.52,136.51,19.7858528]
[1763334450156,100.0,136.55,136.54,32.44002769]
[1763334450421,100.0,136.59,136.58,22.6512]
[1763334450667,100.0,136.59,136.58,41.7570528]
[1763334450845,100.0,136.59,136.58,42.4670528]
[1763334451046,2.2,136.73,136.58,51.78407791]
[1763334451245,100.0,136.6,136.59,10.49882769]
[1763334451653,100.0,136.6,136.58,22.6512]
[1763334452158,100.0,136.53,136.5,6.05607736]
[1763334452367,100.0,136.53,136.52,9.31702511]
[1763334452578,100.0,136.48,136.46,6.05607736]
[1763334452733,2.0,136.61,136.47,0.71]
[1763334452936,100.0,136.48,136.47,0.71]
[1763334453170,2.0,136.6,136.47,33.15002769]
[1763334453332,100.0,136.48,136.47,23.3612]
[1763334453535,2.0,136.66,136.49,22.6512]
[1763334453736,100.0,136.66,136.65,9.31702511]
[1763334454052,100.0,136.63,136.59,9.78882769]
[1763334454236,100.0,136.6,136.59,9.78882769]
[1763334454653,100.0,136.57,136.56,6.05403128]
[1763334454860,100.0,136.57,136.56,9.78882769]
[1763334455360,100.0,136.57,136.56,19.8158528]
[1763334455658,100.0,136.57,136.56,10.02702511]
[1763334455862,100.0,136.57,136.56,19.8158528]
[1763334456043,0.2,136.73,136.6,9.78882769]
[1763334456044,100.0,136.61,136.6,9.78882769]
[1763334456245,0.2,136.73,136.63,22.6512]
[1763334456246,100.0,136.64,136.63,22.6512]
[1763334456452,100.0,136.64,136.63,31.96822511]
[1763334457060,100.0,136.64,136.63,41.7570528]
[1763334457258,100.0,136.65,136.64,9.78882769]
[1763334457560,100.0,136.65,136.64,9.31702511]
[1763334458062,100.0,136.58,136.55,6.05403128]
[1763334458282,100.0,136.54,136.53,9.78882769]
[1763334458457,13.41749736,136.71,136.54,36.48119258]
[1763334458458,100.0,136.55,136.54,36.48119258]
[1763334458657,100.0,136.59,136.58,9.78882769]
[1763334458870,2.0,136.72,136.55,16.54126567]
[1763334458871,100.0,136.56,136.55,16.54126567]
[1763334459195,100.0,136.56,136.55,9.78882769]
[1763334459353,100.0,136.57,136.56,9.78882769]
[1763334459548,100.0,136.57,136.56,19.8158528]
[1763334459747,100.0,136.6,136.59,32.44002769]
[1763334459981,100.0,136.65,136.64,32.44002769]
[1763334460182,100.0,136.69,136.68,32.44002769]
[1763334460395,100.0,136.69,136.68,41.7570528]
[1763334460594,100.0,136.78,136.77,9.31702511]
[1763334460751,100.0,136.69,136.68,9.78882769]
[1763334461176,100.0,136.72,136.71,32.44002769]
[1763334461676,100.0,136.73,136.72,10.49882769]
[1763334461976,100.0,136.73,136.72,19.8158528]
[1763334462174,100.0,136.76,136.75,32.44002769]
[1763334462381,100.0,136.77,136.76,9.78882769]
[1763334462553,100.0,136.77,136.76,19.8158528]
[1763334462749,100.0,136.8,136.79,22.6512]
[1763334462972,100.0,136.8,136.79,51.07407791]
[1763334463175,100.0,136.84,136.83,32.44002769]
[1763334463459,100.0,136.71,136.7,32.44002769]
[1763334463787,100.0,136.71,136.7,19.1058528]
[1763334463965,24.6512,136.9,136.7,19.1058528]
[1763334464279,100.0,136.8,136.79,22.6512]
[1763334464453,100.0,136.81,136.8,9.78882769]
[1763334464651,100.0,136.81,136.79,22.6512]
[1763334464853,100.0,136.69,136.68,9.78882769]
[1763334465076,100.0,136.7,136.69,26.70870452]
[1763334465278,100.0,136.7,136.69,19.1058528]
[1763334465669,22.6512,136.89,136.7,9.78882769]
[1763334465670,100.0,136.71,136.7,9.78882769]
[1763334465874,100.0,136.71,136.7,19.8158528]
[1763334466072,24.6512,136.89,136.7,19.8158528]
[1763334466284,100.0,136.87,136.86,9.31702511]
[1763334466586,100.0,136.68,136.67,43.34875683]
[1763334466788,100.0,136.69,136.68,9.78882769]
[1763334467269,24.6512,136.87,136.71,32.44002769]
[1763334467270,100.0,136.72,136.71,32.44002769]
[1763334467888,100.0,136.64,136.62,6.04243798]
[1763334468097,50.0,136.58,136.57,41.03829799]
[1763334468259,100.0,136.59,136.57,52.19397936]
[1763334468464,100.0,136.59,136.58,19.34405022]
[1763334468900,0.62987404,136.98,136.59,2.46105779]
[1763334469102,100.0,136.83,136.82,9.31702511]
[1763334469582,100.0,136.75,136.74,0.71]
[1763334469758,100.0,136.75,136.74,19.8158528]
[1763334469960,50.0,136.75,136.74,19.8158528]
[1763334470178,100.0,136.78,136.77,32.44002769]
[1763334470585,100.0,136.78,136.77,32.67822511]
[1763334470773,100.0,136.78,136.77,42.4670528]
[1763334471100,100.0,136.79,136.78,9.78882769]
[1763334471268,100.0,136.79,136.78,19.8158528]
[1763334471474,2.0,136.94,136.78,19.8158528]
[1763334471778,100.0,136.78,136.77,9.78882769]
[1763334471976,2.0,136.92,136.77,32.44002769]
[1763334472166,9.33342716,136.98,136.77,32.44002769]
[1763334472167,100.0,136.79,136.78,10.49882769]
[1763334472366,100.0,136.82,136.81,32.44002769]
[1763334472561,2.0,136.97,136.82,9.78882769]
[1763334472791,100.0,136.86,136.85,32.44002769]
[1763334473002,100.0,136.76,136.75,9.78882769]
[1763334473165,100.0,136.78,136.77,9.78882769]
[1763334473368,100.0,136.78,136.77,28.42287791]
[1763334473567,22.6512,136.93,136.77,10.49882769]
[1763334473794,100.0,136.81,136.8,32.44002769]
[1763334474002,0.2,136.98,136.74,0.71]
[1763334474003,100.0,136.75,136.74,0.71]
[1763334474183,2.0,136.87,136.74,0.71]
[1763334474507,100.0,136.75,136.74,0.71]
[1763334474814,22.6512,136.87,136.68,33.55992914]
[1763334474815,100.0,136.69,136.68,33.55992914]
[1763334475090,32.44002769,136.87,136.68,48.91939223]
[1763334475308,100.0,136.69,136.68,39.60236712]
[1763334475481,2.0,136.9,136.69,26.69236489]
[1763334475791,100.0,136.7,136.69,16.51713701]
[1763334475995,100.0,136.7,136.69,9.78882769]
[1763334476377,100.0,136.7,136.69,10.49882769]
[1763334476577,100.0,136.74,136.73,32.44002769]
[1763334476780,100.0,136.74,136.73,41.7570528]
[1763334477013,100.0,136.74,136.73,42.4670528]
[1763334477371,2.0,136.88,136.73,42.4670528]
[1763334477713,2.0,136.88,136.87,9.31702511]
[1763334477714,100.0,136.88,136.87,9.31702511]
[1763334478578,24.6512,136.95,136.83,32.44002769]
[1763334478579,100.0,136.84,136.83,32.44002769]
[1763334479106,100.0,136.84,136.83,33.15002769]
[1763334479273,100.0,136.81,136.8,0.71]
[1763334479467,100.0,136.78,136.77,6.02890376]
[1763334479673,100.0,136.78,136.77,19.1058528]
[1763334479875,100.0,136.81,136.8,32.44002769]
[1763334480074,100.0,136.81,136.8,51.07407791]
[1763334480373,0.2,136.98,136.84,32.44002769]
[1763334480374,100.0,136.85,136.84,32.44002769]
[1763334480572,100.0,136.85,136.84,41.7570528]
[1763334480790,100.0,136.8,136.79,9.78882769]
[1763334481014,100.0,136.8,136.79,28.42287791]
[1763334481234,100.0,136.83,136.82,32.44002769]
[1763334481420,100.0,136.83,136.82,41.7570528]
[1763334481630,0.2,136.98,136.83,22.6512]
[1763334481631,100.0,136.84,136.83,22.6512]
[1763334481826,2.0,136.92,136.77,6.02890376]
[1763334481827,100.0,136.78,136.77,6.02890376]
[1763334482024,50.0,136.78,136.77,9.31702511]
[1763334482328,100.0,136.78,136.77,9.31702511]
[1763334482521,100.0,136.81,136.8,22.6512]
[1763334482695,100.0,136.81,136.8,41.7570528]
[1763334482897,100.0,136.81,136.8,42.4370528]
[1763334483119,100.0,136.82,136.81,9.78882769]
[1763334483329,100.0,136.85,136.84,32.44002769]
[1763334483527,100.0,136.85,136.84,41.7570528]
[1763334483696,100.0,136.86,136.85,9.78882769]
[1763334483891,100.0,136.86,136.85,19.1058528]
[1763334484092,100.0,136.79,136.78,6.04340791]
[1763334484293,100.0,136.77,136.75,6.04340791]
[1763334484538,100.0,136.77,136.76,9.31702511]
[1763334484712,100.0,136.7,136.69,6.04340791]
[1763334484900,100.0,136.72,136.71,22.6512]
[1763334485099,100.0,136.72,136.71,6.05212833]
[1763334485321,2.0,136.85,136.71,6.73212833]
[1763334485550,100.0,136.72,136.71,6.05212833]
[1763334485824,100.0,136.75,136.74,22.6512]
[1763334486025,100.0,136.75,136.74,9.78882769]
[1763334486355,100.0,136.75,136.74,19.7858528]
[1763334486558,100.0,136.78,136.77,32.44002769]
[1763334486834,50.0,136.78,136.77,44.15017381]
[1763334486993,100.0,136.86,136.78,1.43593087]
[1763334487194,100.0,136.8,136.79,15.82096207]
[1763334487395,100.0,136.81,136.8,9.78882769]
[1763334487829,100.0,136.79,136.78,32.44002769]
[1763334487996,100.0,136.79,136.78,38.47216207]
[1763334488201,100.0,136.79,136.78,32.44002769]
[1763334488496,100.0,136.79,136.78,42.89424294]
[1763334488702,100.0,136.79,136.78,31.94002769]
[1763334488934,100.0,136.79,136.78,42.21424294]
[1763334489110,100.0,136.79,136.78,42.89424294]
[1763334489730,0.2,136.93,136.78,48.92637732]
[1763334489731,22.8512,136.93,136.78,48.92637732]
[1763334489912,100.0,136.79,136.78,37.97461711]
[1763334490102,100.0,136.83,136.82,1.43593087]
[1763334490441,5.96130574,137.23,136.87,1.43593087]
[1763334490442,0.2,137.06,136.87,1.43593087]
[1763334490743,100.0,136.91,136.9,32.44002769]
[1763334491155,0.2,137.01,136.91,9.78882769]
[1763334491444,100.0,136.95,136.94,32.44002769]
[1763334491611,100.0,136.95,136.94,42.71424294]
[1763334491961,100.0,136.96,136.95,9.78882769]
[1763334492138,100.0,136.96,136.95,26.75975097]
[1763334492450,0.2,137.01,136.99,11.22475856]
[1763334492660,100.0,137.04,137.03,32.44002769]
[1763334492943,0.4,137.14,137.03,42.71424294]
[1763334493151,100.0,137.05,137.04,10.46882769]
[1763334493323,1.93593088,137.15,137.04,9.78882769]
[1763334493514,100.0,137.05,137.04,32.44002769]
[1763334493714,100.0,137.05,137.04,9.78882769]
[1763334493941,100.0,137.03,137.02,22.6512]
[1763334494138,100.0,137.03,137.02,32.44002769]
[1763334494741,24.58713088,137.15,137.06,32.44002769]
[1763334494742,100.0,137.07,137.06,32.44002769]
[1763334494936,100.0,137.07,137.06,42.71424294]
[1763334495236,100.0,137.07,137.06,32.92541525]
[1763334495440,100.0,137.07,137.06,42.71424294]
[1763334496044,100.0,137.08,137.07,9.78882769]
[1763334496337,100.0,137.08,137.07,18.56304294]
[1763334496540,100.0,137.08,137.07,19.27304294]
[1763334496916,100.0,137.11,137.1,22.6512]
[1763334497116,100.0,137.11,137.1,32.92541525]
[1763334498625,100.0,137.0,136.99,9.78882769]
[1763334498826,100.0,136.95,136.93,5.95144866]
[1763334499030,100.0,136.93,136.92,5.95144866]
[1763334499342,100.0,136.98,136.97,22.6512]
[1763334499733,0.4,137.12,136.98,9.78882769]
[1763334500035,100.0,136.99,136.98,10.49882769]
[1763334500238,100.0,136.99,136.98,9.78882769]
[1763334500616,100.0,136.99,136.98,10.49882769]
[1763334500843,100.0,136.95,136.94,0.71]
[1763334501050,100.0,136.95,136.91,39.52400317]
[1763334501051,100.0,136.92,136.91,39.52400317]
[1763334501253,100.0,136.93,136.92,30.98108209]
[1763334501559,1.93593088,137.15,136.94,30.98108209]
[1763334501560,100.0,136.95,136.94,30.98108209]
[1763334501717,100.0,136.99,136.98,40.76990978]
[1763334502052,100.0,137.03,137.02,32.44002769]
[1763334502220,100.0,137.03,137.02,50.81367544]
[1763334502422,100.0,137.03,137.02,61.08789069]
[1763334502623,1.93593088,137.15,137.02,61.08789069]
[1763334502624,50.0,137.08,137.07,24.08713087]
[1763334502846,100.0,137.12,137.11,22.6512]
[1763334503048,100.0,137.16,137.15,22.6512]
[1763334503278,0.2,137.22,137.15,22.6512]
[1763334503279,0.2,137.22,137.15,42.71424294]
[1763334503422,100.0,137.17,137.16,10.35882769]
[1763334503925,100.0,137.17,137.16,9.78882769]
[1763334504125,100.0,137.15,137.14,9.78882769]
[1763334504334,100.0,137.15,137.13,31.98882769]
[1763334504624,100.0,137.15,137.14,20.06304294]
[1763334504940,100.0,137.15,137.14,20.63304294]
[1763334505135,100.0,137.15,137.14,20.06304294]
[1763334505321,100.0,137.18,137.17,32.44002769]
[1763334505519,100.0,137.18,137.17,42.71424294]
[1763334505932,100.0,137.18,137.17,32.44002769]
[1763334506335,100.0,137.19,137.18,9.78882769]
[1763334506538,100.0,137.16,137.15,9.78882769]
[1763334507073,100.0,137.19,137.18,32.44002769]
[1763334507236,100.0,137.19,137.18,42.71424294]
[1763334507566,100.0,137.2,137.19,9.78882769]
[1763334507743,100.0,137.2,137.19,20.06304294]
[1763334507944,100.0,137.2,137.1,6.5145828]
[1763334507945,100.69,137.2,137.1,6.5145828]
[1763334508138,2.0,137.29,137.08,18.20298814]
[1763334508139,100.0,137.09,137.08,10.27421525]
[1763334508336,100.0,137.09,137.08,20.5484305]
[1763334508650,0.59,137.22,137.08,21.2584305]
[1763334508952,100.0,137.1,137.09,0.71]
[1763334509958,100.0,137.13,137.12,30.98108209]
[1763334510162,100.0,137.16,137.15,31.94002769]
[1763334510461,100.0,137.16,137.15,42.21424294]
[1763334510755,100.0,137.17,137.16,9.78882769]
[1763334510960,100.0,137.17,137.16,20.76304294]
[1763334511769,0.59,137.31,137.17,30.98108209]
[1763334512061,100.59,137.31,137.3,10.27421525]
[1763334512262,50.0,137.12,137.11,22.6512]
[1763334512442,100.0,137.25,137.24,22.6512]
[1763334512646,100.0,137.15,137.14,0.7]
[1763334512955,100.0,137.16,137.15,9.78882769]
[1763334513355,100.0,137.12,137.11,0.7]
[1763334513834,100.0,137.12,137.11,20.76304294]
[1763334514032,100.0,137.13,137.12,9.78882769]
[1763334514238,100.0,137.13,137.12,20.76304294]
[1763334514667,100.0,137.16,137.15,32.44002769]
[1763334514866,100.0,137.17,137.16,9.78882769]
[1763334515064,100.0,137.17,137.16,20.76304294]
[1763334515374,10.27421525,137.34,137.19,32.44002769]
[1763334515375,100.0,137.2,137.19,32.44002769]
[1763334515540,100.0,137.12,137.11,0.7]
[1763334515743,100.0,137.12,137.11,10.27421525]
[1763334516240,100.0,137.03,137.02,33.55992914]
[1763334516441,100.0,137.03,137.02,43.83414439]
[1763334516859,100.0,137.03,137.02,10.97421525]
[1763334517063,100.0,137.03,137.02,20.76304294]
[1763334517347,100.0,137.06,137.05,22.6512]
[1763334517564,100.0,137.06,137.05,10.27421525]
[1763334518473,100.0,136.98,136.97,0.7]
[1763334518662,100.0,136.93,136.92,0.7]
[1763334519060,100.0,136.86,136.83,1.43593087]
[1763334519260,2.0,137.02,136.83,1.43593087]
[1763334519261,100.0,136.87,136.86,30.98108209]
[1763334519462,100.0,136.87,136.86,10.27421525]
[1763334519768,50.0,136.88,136.87,77.57294461]
[1763334519942,24.6512,137.08,136.92,22.6512]
[1763334520143,2.0,137.1,137.07,10.27421525]
[1763334520345,100.0,136.98,136.97,10.48882769]
[1763334520545,100.0,136.92,136.91,0.7]
[1763334521061,100.0,136.88,136.87,0.7]
[1763334521369,22.6512,137.06,136.9,32.44002769]
[1763334521370,100.0,136.91,136.9,32.44002769]
[1763334521569,100.0,136.91,136.9,42.71424294]
[1763334521774,100.0,136.92,136.91,9.78882769]
[1763334521977,100.0,136.92,136.91,20.06304294]
[1763334522156,100.0,136.92,136.91,10.27421525]
[1763334522472,100.0,136.92,136.91,10.55060256]
[1763334522769,100.0,136.88,136.87,9.78882769]
[1763334522947,2.0,137.03,136.88,9.78882769]
[1763334522948,100.0,136.89,136.88,9.78882769]
[1763334523149,100.0,136.89,136.88,20.33943025]
[1763334523350,100.0,136.92,136.91,22.6512]
[1763334523549,100.0,136.92,136.91,20.33943025]
[1763334523987,100.0,136.92,136.91,21.03943025]
[1763334524152,100.0,136.95,136.94,22.6512]
[1763334524346,100.0,136.95,136.94,42.99063025]
[1763334524860,100.0,136.95,136.94,43.69063025]
[1763334525064,9.78882769,137.1,136.95,9.78882769]
[1763334525065,100.0,136.96,136.95,9.78882769]
[1763334525276,100.0,136.96,136.95,20.33943025]
[1763334526784,100.0,136.99,136.98,32.44002769]
[1763334527083,100.0,136.99,136.98,10.55060256]
[1763334527461,2.0,137.05,136.82,41.48870203]
[1763334527462,100.0,136.91,136.82,33.55992914]
[1763334527778,100.0,136.91,136.9,10.55060256]
[1763334528871,2.0,137.01,136.9,10.55060256]
[1763334529081,50.0,136.83,136.82,33.55992914]
[1763334529260,100.0,136.83,136.82,44.8105317]
[1763334529462,100.0,136.83,136.82,61.94735939]
[1763334529777,100.0,136.83,136.82,44.8105317]
[1763334530154,100.0,136.86,136.85,32.44002769]
[1763334530477,100.0,136.86,136.85,42.99063025]
[1763334530877,100.0,136.87,136.86,9.78882769]
[1763334531070,100.0,136.87,136.86,10.55060256]
[1763334531585,100.0,136.87,136.86,20.33943025]
[1763334533384,100.0,136.87,136.86,9.78882769]
[1763334533679,100.0,136.87,136.86,20.33943025]
[1763334533853,100.0,136.88,136.87,32.44002769]
[1763334534056,100.0,136.88,136.87,20.33943025]
[1763334536380,100.0,136.85,136.84,9.78882769]
[1763334536560,100.0,136.85,136.84,20.33943025]
[1763334537374,100.0,136.85,136.84,22.6512]
[1763334537569,100.0,136.85,136.84,32.44002769]
[1763334537771,100.0,136.86,136.85,9.78882769]
[1763334537973,100.0,136.86,136.85,20.33943025]
[1763334538164,100.0,136.89,136.88,22.6512]
[1763334538364,100.0,136.89,136.88,42.99063025]
[1763334538566,100.0,136.9,136.89,9.78882769]
[1763334538774,100.0,136.9,136.89,20.33943025]
[1763334538977,100.0,136.81,136.8,10.55060256]
[1763334539175,100.0,136.81,136.8,20.33943025]
[1763334539683,100.0,136.82,136.81,9.78882769]
[1763334539884,100.0,136.82,136.81,20.33943025]
[1763334540061,100.0,136.85,136.84,32.44002769]
[1763334540266,100.0,136.85,136.84,42.99063025]
[1763334540482,100.0,136.86,136.85,9.78882769]
[1763334540679,100.0,136.86,136.85,48.83943025]
[1763334540866,100.0,136.89,136.88,32.44002769]
[1763334541064,100.0,136.89,136.88,42.99063025]
[1763334541274,100.0,136.93,136.92,32.44002769]
[1763334541585,100.0,137.01,137.0,22.6512]
[1763334541767,100.0,137.01,137.0,42.99063025]
[1763334541972,100.0,137.01,137.0,22.6512]
[1763334542176,100.0,137.01,137.0,42.99063025]
[1763334542396,100.0,137.02,137.01,9.78882769]
[1763334542563,100.0,137.05,137.04,32.44002769]
[1763334542765,100.0,137.09,137.08,22.6512]
[1763334542988,100.0,137.1,137.09,9.78882769]
[1763334543308,100.0,137.1,137.09,20.33943025]
[1763334543500,100.0,137.1,137.09,21.02943025]
[1763334543792,100.0,137.13,137.12,32.44002769]
[1763334543970,100.0,137.13,137.12,42.99063025]
[1763334544179,100.0,137.02,137.0,10.55060256]
[1763334544358,2.0,137.13,136.97,9.78882769]
[1763334544583,100.0,136.98,136.97,9.78882769]
[1763334545006,100.0,136.92,136.91,7.92877289]
[1763334545225,50.0,136.93,136.92,5.16917282]
[1763334545524,50.0,136.91,136.89,13.32909021]
[1763334545685,100.0,136.91,136.9,18.50819121]
[1763334545894,100.0,136.91,136.9,11.24060256]
[1763334546225,100.0,136.89,136.88,33.55992914]
[1763334546788,100.0,136.89,136.88,44.03875683]
[1763334546995,100.0,136.93,136.92,32.44002769]
[1763334547488,2.0,137.11,136.96,32.44002769]
[1763334547734,100.0,137.05,137.03,9.78882769]
[1763334548020,100.0,137.02,137.01,9.78882769]
[1763334548195,100.0,137.05,137.04,32.44002769]
[1763334548395,0.2,137.12,137.05,9.78882769]
[1763334548396,100.0,137.06,137.05,9.78882769]
[1763334548621,0.2,137.12,136.98,7.95758865]
[1763334548622,50.0,136.99,136.98,7.95758865]
[1763334548807,100.0,137.02,137.0,9.78882769]
[1763334548992,100.0,137.02,136.98,9.25443515]
[1763334548993,100.0,137.02,137.01,19.73326284]
[1763334549312,100.0,137.02,137.01,19.04326284]
[1763334550289,100.0,136.9,136.88,42.20751779]
[1763334550608,100.0,136.9,136.85,21.14759449]
[1763334550609,100.0,136.9,136.89,9.94443515]
[1763334550913,100.0,136.9,136.89,9.25443515]
[1763334551723,100.0,136.9,136.89,19.73326284]
[1763334552220,11.25443515,137.02,136.92,32.44002769]
[1763334552221,100.0,136.93,136.92,32.44002769]
[1763334552435,100.0,136.86,136.83,7.95758865]
[1763334552725,100.0,136.86,136.85,9.25443515]
[1763334553211,100.0,136.86,136.85,19.04326284]
[1763334553519,100.0,136.89,136.88,32.44002769]
[1763334553693,100.0,136.89,136.88,31.90563515]
[1763334553891,100.0,136.82,136.8,7.95758865]
[1763334554125,100.0,136.82,136.81,9.25443515]
[1763334554884,100.0,136.85,136.84,32.44002769]
[1763334555195,100.0,136.85,136.84,19.04326284]
[1763334555605,2.0,136.96,136.84,19.73326284]
[1763334555918,2.0,136.96,136.77,0.1]
[1763334555919,100.0,136.92,136.91,9.78882769]
[1763334556123,11.25443515,137.02,136.91,9.78882769]
[1763334556124,11.25443515,137.02,136.92,9.78882769]
[1763334556324,100.0,136.9,136.89,32.44002769]
[1763334556623,100.0,136.94,136.93,22.6512]
[1763334556821,100.0,136.94,136.84,11.89315934]
[1763334556822,100.0,136.83,136.82,9.78882769]
[1763334557130,100.0,136.83,136.82,5.61460231]
[1763334557489,100.0,136.86,136.85,22.6512]
[1763334557689,100.0,136.86,136.85,38.05463]
[1763334557900,100.0,136.86,136.85,38.73463]
[1763334558112,100.0,136.86,136.85,38.05463]
[1763334558296,100.0,136.87,136.86,9.78882769]
[1763334558616,100.0,136.9,136.89,22.6512]
[1763334558824,100.0,136.9,136.89,38.05463]
[1763334559118,100.0,136.91,136.9,9.78882769]
[1763334559312,100.0,136.91,136.9,15.40343]
[1763334559490,100.0,136.91,136.9,6.29460231]
[1763334559687,100.0,136.91,136.9,16.08343]
[1763334559890,100.0,136.91,136.9,15.40343]
[1763334560325,100.0,136.91,136.9,38.05463]
[1763334560625,100.0,136.91,136.9,15.40343]
[1763334560832,100.0,136.95,136.94,9.78882769]
[1763334561114,100.0,136.95,136.94,43.66923231]
[1763334561334,100.0,136.95,136.94,29.76406435]
[1763334561531,2.0,137.08,136.94,29.76406435]
[1763334561532,100.0,136.97,136.96,32.44002769]
[1763334561734,100.0,136.97,136.96,55.77724974]
[1763334562030,100.0,136.97,136.96,5.61460231]
[1763334562191,100.0,136.97,136.96,15.40343]
[1763334562605,100.0,136.97,136.96,21.01803231]
[1763334563012,100.0,137.0,136.99,32.44002769]
[1763334563199,100.0,137.0,136.99,38.05463]
[1763334563403,100.0,137.01,137.0,9.78882769]
[1763334563613,100.0,137.01,137.0,15.40343]
[1763334563813,100.0,137.04,137.03,22.6512]
[1763334564020,100.0,137.04,137.03,28.26580231]
[1763334564223,100.0,136.99,136.98,22.6512]
[1763334565426,100.0,136.99,136.98,21.01803231]
[1763334565596,100.0,137.02,137.01,22.6512]
[1763334565799,100.0,137.02,137.01,28.26580231]
[1763334566015,100.0,137.02,137.01,38.05463]
[1763334566608,100.0,137.02,137.01,46.13760473]
[1763334566918,100.0,137.02,137.01,38.05463]
[1763334567333,100.0,137.02,137.01,46.13760473]
[1763334567502,50.0,137.02,137.01,38.05463]
[1763334567703,100.0,137.02,137.01,22.6512]
[1763334567909,100.0,136.95,136.94,12.10801743]
[1763334568208,100.0,136.94,136.92,12.10801743]
[1763334568424,100.0,136.92,136.9,12.78801743]
[1763334568632,100.0,136.92,136.91,12.10801743]
[1763334568821,100.0,136.92,136.91,10.46882769]
[1763334569143,100.0,136.92,136.91,28.21073411]
[1763334569344,100.0,136.96,136.95,22.6512]
[1763334569648,100.0,136.97,136.96,9.78882769]
[1763334570010,100.0,136.97,136.96,15.40343]
[1763334570415,100.0,137.0,136.99,22.6512]
[1763334570609,100.0,137.0,136.99,28.26580231]
[1763334570918,100.0,137.0,136.99,31.91913211]
[1763334571331,100.0,137.0,136.99,9.26793211]
[1763334571719,100.0,137.0,136.92,9.78882769]
[1763334571720,100.0,136.93,136.92,9.78882769]
[1763334571906,100.0,136.93,136.92,19.0567598]
[1763334572106,100.0,136.93,136.92,9.26793211]
[1763334572530,100.0,136.91,136.9,9.78882769]
[1763334572718,100.0,136.91,136.9,19.0567598]
[1763334573039,100.0,136.95,136.94,9.78882769]
[1763334573238,100.0,136.98,136.97,22.6512]
[1763334573538,100.0,136.99,136.98,9.78882769]
[1763334573740,100.0,137.02,137.01,32.44002769]
[1763334573944,100.0,137.06,137.05,32.44002769]
[1763334574111,165.2,137.12,137.06,9.78882769]
[1763334574112,100.0,137.07,137.06,9.78882769]
[1763334574438,100.0,137.1,137.09,32.44002769]
[1763334574738,100.0,137.11,137.1,9.78882769]
[1763334575046,0.2,137.12,137.05,8.0745721]
[1763334575047,100.0,137.08,137.07,22.6512]
[1763334575221,0.2,137.12,137.08,9.78882769]
[1763334575545,100.0,137.09,137.08,9.78882769]
[1763334575720,100.0,137.1,137.09,32.44002769]
[1763334576445,100.0,137.06,137.05,9.78882769]
[1763334576652,0.2,137.12,137.08,22.6512]